bitfinex-derivatives/quotes_BTCF0:USTF0_20250724
["timestamp","ask_amount","ask_price","bid_price","bid_amount"]
[1753356436376,1.77266164,118740.0,118730.0,0.96901459]
[1753356436579,1.17410164,118740.0,118730.0,0.96901459]
[1753356436780,1.77226164,118740.0,118730.0,0.96901459]
[1753356439482,1.3507368,118740.0,118730.0,0.96901459]
[1753356439781,1.77226164,118740.0,118730.0,0.96901459]
[1753356440079,1.74244164,118740.0,118730.0,0.96901459]
[1753356441573,1.77226164,118740.0,118730.0,0.96901459]
[1753356442773,1.3507368,118740.0,118730.0,0.96901459]
[1753356442974,1.77226164,118740.0,118730.0,0.96901459]
[1753356443982,1.17410164,118740.0,118730.0,0.96901459]
[1753356444174,1.77206164,118740.0,118730.0,0.96901459]
[1753356446283,1.17410164,118740.0,118730.0,0.96901459]
[1753356446582,1.77198164,118740.0,118730.0,0.96901459]
[1753356447076,1.74216164,118740.0,118730.0,0.96901459]
[1753356447477,1.3206368,118740.0,118730.0,0.96901459]
[1753356447783,1.74216164,118740.0,118730.0,1.17977701]
[1753356448383,1.67086164,118740.0,118730.0,1.17977701]
[1753356448680,1.67086164,118740.0,118730.0,0.96901459]
[1753356448881,1.67086164,118740.0,118730.0,1.17977701]
[1753356449282,1.74292164,118740.0,118730.0,1.17977701]
[1753356449584,1.70083344,118740.0,118730.0,1.17977701]
[1753356450382,1.53248484,118740.0,118730.0,1.17977701]
[1753356450585,1.46042484,118740.0,118730.0,1.17977701]
[1753356451977,1.46042484,118740.0,118730.0,0.96901459]
[1753356452182,1.46042484,118740.0,118730.0,1.17977701]
[1753356453582,0.86254484,118740.0,118730.0,1.17977701]
[1753356453787,0.86254484,118740.0,118730.0,1.11982952]
[1753356453788,1.46018484,118740.0,118730.0,1.11982952]
[1753356453988,1.46018484,118740.0,118730.0,0.9090671]
[1753356454283,1.46018484,118740.0,118730.0,1.11982952]
[1753356455495,0.86254484,118740.0,118730.0,1.11982952]
[1753356455685,1.46014484,118740.0,118730.0,1.11982952]
[1753356455881,1.73036744,118740.0,118730.0,0.52066]
[1753356456082,3.23174046,118740.0,118730.0,0.04505744]
[1753356456288,0.5025909,118720.0,118710.0,0.89602319]
[1753356456493,1.88171574,118720.0,118710.0,0.89602319]
[1753356456791,2.0087462,118720.0,118710.0,0.89602319]
[1753356457386,2.0087462,118720.0,118710.0,0.64345749]
[1753356457588,2.21950862,118720.0,118710.0,0.64345749]
[1753356457988,2.0087462,118720.0,118710.0,0.81184259]
[1753356458191,2.0087462,118720.0,118710.0,0.91530259]
[1753356458386,1.58722136,118720.0,118710.0,0.96098259]
[1753356458584,2.01663685,118720.0,118710.0,0.96198259]
[1753356459291,1.87622609,118720.0,118710.0,0.96198259]
[1753356460186,1.87622609,118720.0,118710.0,0.9020351]
[1753356460889,1.86833544,118720.0,118710.0,0.9020351]
[1753356461088,1.58722136,118720.0,118710.0,0.9020351]
[1753356461290,1.86833544,118720.0,118710.0,0.9020351]
[1753356466998,1.86833544,118720.0,118710.0,0.9030351]
[1753356470700,2.14944952,118720.0,118710.0,0.73465]
[1753356470899,2.14944952,118720.0,118710.0,0.9030352]
[1753356471097,1.86833544,118720.0,118710.0,0.9030352]
[1753356472598,1.86833544,118720.0,118710.0,0.73465]
[1753356475608,2.14944952,118720.0,118710.0,0.73465]
[1753356476103,2.14944952,118720.0,118710.0,0.9030352]
[1753356476304,2.14944952,118720.0,118710.0,0.73465]
[1753356476906,2.14944952,118720.0,118710.0,0.46626]
[1753356477104,2.14944952,118720.0,118710.0,0.40777277]
[1753356478000,1.58722136,118720.0,118710.0,0.40777277]
[1753356478301,2.14944952,118720.0,118710.0,0.51440277]
[1753356481205,2.21977685,118720.0,118710.0,0.51440277]
[1753356481405,2.21977685,118720.0,118710.0,0.68278797]
[1753356483107,2.21977685,118720.0,118710.0,0.73002797]
[1753356483411,2.21977685,118720.0,118710.0,0.79824797]
[1753356485005,2.21977685,118720.0,118710.0,0.62986277]
[1753356485205,2.21977685,118720.0,118710.0,0.51440277]
[1753356486906,2.21977685,118720.0,118710.0,0.68278797]
[1753356487109,2.21977685,118720.0,118710.0,0.94738797]
[1753356487314,2.00892502,118720.0,118710.0,0.94738797]
[1753356487808,2.00892502,118720.0,118710.0,0.75100797]
[1753356488117,2.00892502,118720.0,118710.0,0.79824797]
[1753356488513,2.00892502,118720.0,118710.0,0.91538797]
[1753356488912,2.00892502,118720.0,118710.0,0.94738797]
[1753356494420,1.34226502,118720.0,118710.0,0.94738797]
[1753356494615,1.93886502,118720.0,118710.0,0.94738797]
[1753356495119,2.00572502,118720.0,118710.0,0.94738797]
[1753356495619,0.98742136,118720.0,118710.0,0.94738797]
[1753356495914,1.93882502,118720.0,118710.0,0.94738797]
[1753356496114,1.86676502,118720.0,118710.0,0.94738797]
[1753356496316,1.94115502,118720.0,118710.0,0.94738797]
[1753356496622,1.34459502,118720.0,118710.0,0.94738797]
[1753356496821,1.94111502,118720.0,118710.0,0.94738797]
[1753356497422,1.94111502,118720.0,118710.0,0.9024152]
[1753356501024,1.94111502,118720.0,118710.0,0.9474678]
[1753356501527,1.94111502,118720.0,118710.0,0.9024152]
[1753356502025,2.00797502,118720.0,118710.0,0.9024152]
[1753356503621,1.58627136,118720.0,118710.0,0.94747449]
[1753356503826,2.02568048,118720.0,118710.0,0.94747449]
[1753356504318,2.00797502,118720.0,118710.0,0.94747449]
[1753356505127,2.02568296,118720.0,118710.0,0.94747449]
[1753356510728,2.02568296,118720.0,118710.0,0.91547449]
[1753356511825,2.02568296,118720.0,118710.0,0.94600449]
[1753356512420,2.23653479,118720.0,118710.0,0.51448929]
[1753356512926,2.02568296,118720.0,118710.0,0.63538929]
[1753356513226,2.02568296,118720.0,118710.0,0.80377449]
[1753356513427,2.02568296,118720.0,118710.0,0.92021449]
[1753356513620,2.02568296,118720.0,118710.0,0.95074449]
[1753356513928,2.00797502,118720.0,118710.0,0.7373]
[1753356516330,2.00797502,118720.0,118710.0,0.9056852]
[1753356518324,1.58627136,118720.0,118710.0,0.9056852]
[1753356518527,1.94111502,118720.0,118710.0,0.9056852]
[1753356519029,2.00510502,118720.0,118710.0,0.9056852]
[1753356525719,2.00510502,118720.0,118710.0,0.7373]
[1753356525926,2.00510502,118720.0,118710.0,0.9056852]
[1753356526425,2.21595685,118720.0,118710.0,0.9056852]
[1753356527336,2.21595685,118720.0,118710.0,0.7373]
[1753356528029,2.21595685,118720.0,118710.0,0.3628]
[1753356528535,1.58340136,118720.0,118710.0,0.40790718]
[1753356528834,2.21595685,118720.0,118710.0,0.40790718]
[1753356530629,2.21595685,118720.0,118710.0,0.51301718]
[1753356531037,2.21595685,118720.0,118710.0,0.15221718]
[1753356531230,2.23366942,118720.0,118710.0,0.15221718]
[1753356531535,2.23366942,118720.0,118710.0,0.04710718]
[1753356532730,2.23366942,118720.0,118710.0,0.15221718]
[1753356533636,2.23366942,118720.0,118710.0,0.10711]
[1753356535035,2.23366942,118720.0,118710.0,0.18007]
[1753356535237,2.23366942,118720.0,118710.0,0.10711]
[1753356536240,2.23366942,118720.0,118710.0,0.002]
[1753356536439,2.23366942,118720.0,118710.0,0.10711]
[1753356537129,3.22702491,118720.0,118710.0,0.002]
[1753356537327,0.4903451,118710.0,118700.0,0.04510718]
[1753356537530,0.4903451,118710.0,118690.0,0.62221718]
[1753356537531,0.4903593,118700.0,118690.0,0.62221718]
[1753356537736,2.09791479,118700.0,118690.0,0.62221718]
[1753356537931,2.22351247,118700.0,118690.0,0.50353718]
[1753356538838,2.29155494,118700.0,118690.0,0.50353718]
[1753356539039,2.30925687,118700.0,118690.0,0.50653718]
[1753356539240,2.2412144,118700.0,118690.0,0.50653718]
[1753356539441,2.24121019,118700.0,118690.0,0.46143]
[1753356539632,2.24121019,118700.0,118690.0,0.003]
[1753356540032,2.24121019,118700.0,118690.0,0.006]
[1753356540838,2.24121019,118700.0,118690.0,0.10363]
[1753356541238,1.88989246,118700.0,118690.0,0.10363]
[1753356541441,1.29489246,118700.0,118690.0,0.10363]
[1753356542344,1.27719474,118700.0,118690.0,0.10363]
[1753356542842,1.88976384,118700.0,118690.0,0.10363]
[1753356543144,1.88976384,118700.0,118690.0,0.006]
[1753356543740,1.87207474,118700.0,118690.0,0.006]
[1753356543944,1.94058264,118700.0,118690.0,0.006]
[1753356545043,1.94058264,118700.0,118690.0,0.10363]
[1753356545245,1.94054264,118700.0,118690.0,0.10363]
[1753356546745,1.94046264,118700.0,118690.0,0.10363]
[1753356547148,1.34570264,118700.0,118690.0,0.10363]
[1753356547348,1.94042264,118700.0,118690.0,0.10363]
[1753356547548,1.94042264,118700.0,118690.0,0.22231]
[1753356547848,1.94042264,118700.0,118690.0,0.58311]
[1753356548051,1.94042264,118700.0,118690.0,0.22231]
[1753356548953,1.94042264,118700.0,118690.0,0.26912]
[1753356552362,1.94042264,118700.0,118690.0,0.62992]
[1753356552556,1.94042264,118700.0,118690.0,0.26912]
[1753356554261,1.94042264,118700.0,118690.0,0.22231]
[1753356554556,1.94042264,118700.0,118690.0,0.10363]
[1753356557759,1.94042264,118700.0,118690.0,0.46443]
[1753356558062,1.94042264,118700.0,118690.0,0.10363]
[1753356559458,1.94042264,118700.0,118690.0,0.22231]
[1753356561166,2.29195841,118700.0,118690.0,0.22231]
[1753356561760,2.29195841,118700.0,118690.0,0.3907235]
[1753356562266,2.29195841,118700.0,118690.0,0.7515235]
[1753356562467,2.29195841,118700.0,118690.0,0.58311]
[1753356562859,2.29195841,118700.0,118690.0,0.7515235]
[1753356563061,1.52564488,118700.0,118690.0,1.10764801]
[1753356563261,1.66399622,118700.0,118690.0,1.10764801]
[1753356563666,1.66399622,118700.0,118690.0,0.8967235]
[1753356563868,1.71182622,118700.0,118690.0,0.8967235]
[1753356564467,1.78454622,118700.0,118690.0,0.8967235]
[1753356564669,1.4214372,118700.0,118690.0,0.8967235]
[1753356565070,1.84328622,118700.0,118690.0,0.8967235]
[1753356565367,1.84328622,118700.0,118690.0,0.94179258]
[1753356565368,2.05421073,118700.0,118690.0,0.94179258]
[1753356565570,2.05421073,118700.0,118690.0,0.95681561]
[1753356565868,2.05421073,118700.0,118690.0,0.8967235]
[1753356566165,1.84328622,118700.0,118690.0,0.8967235]
[1753356566679,1.84328622,118700.0,118690.0,0.95681561]
[1753356566870,1.84328622,118700.0,118690.0,0.8967235]
[1753356567369,1.7026272,118700.0,118690.0,0.8967235]
[1753356567966,1.6438872,118700.0,118690.0,0.8967235]
[1753356568771,1.6438872,118700.0,118690.0,0.72831]
[1753356569273,1.7005772,118700.0,118690.0,0.72831]
[1753356569462,1.7005772,118700.0,118690.0,0.78840211]
[1753356569662,1.7005772,118700.0,118690.0,0.95681561]
[1753356569862,1.7005772,118700.0,118690.0,0.78840211]
[1753356570274,1.7005772,118700.0,118690.0,0.95681561]
[1753356571069,1.7005772,118700.0,118690.0,0.78840211]
[1753356571271,1.7005772,118700.0,118690.0,0.72831]
[1753356571471,1.7005772,118700.0,118690.0,0.78840211]
[1753356571675,1.7005772,118700.0,118690.0,0.95681561]
[1753356572374,1.7005772,118700.0,118690.0,0.8967235]
[1753356573478,1.7005772,118700.0,118690.0,0.72831]
[1753356573667,1.7005772,118700.0,118690.0,0.8967235]
[1753356573971,1.4193872,118700.0,118690.0,0.8967235]
[1753356574178,1.6438872,118700.0,118690.0,0.8967235]
[1753356577376,0.38,118700.0,118690.0,1.5579135]
[1753356577678,0.7726067,118720.0,118710.0,0.5266451]
[1753356577877,1.7363267,118720.0,118710.0,0.93248293]
[1753356578076,1.86221392,118720.0,118710.0,0.93248293]
[1753356578970,1.86221392,118720.0,118710.0,0.93348293]
[1753356579172,1.34060392,118720.0,118710.0,0.93348293]
[1753356579371,1.93432392,118720.0,118710.0,0.93348293]
[1753356579782,1.93432392,118720.0,118710.0,0.93448293]
[1753356581379,1.93432392,118720.0,118710.0,0.8894451]
[1753356583872,1.95200472,118720.0,118710.0,0.8894451]
[1753356584885,1.93432392,118720.0,118710.0,0.8894451]
[1753356585582,1.99101392,118720.0,118710.0,0.8894451]
[1753356587282,2.13146548,118720.0,118710.0,0.8894451]
[1753356589088,2.34228626,118720.0,118710.0,0.8894451]
[1753356589287,2.13146548,118720.0,118710.0,0.8894451]
[1753356592896,2.14915677,118720.0,118710.0,0.8894451]
[1753356593290,2.14915677,118720.0,118710.0,0.72106]
[1753356593891,2.13146548,118720.0,118710.0,0.93448497]
[1753356595591,2.34228626,118720.0,118710.0,0.76609987]
[1753356595792,2.13146548,118720.0,118710.0,0.76609987]
[1753356596488,2.34228626,118720.0,118710.0,0.93448497]
[1753356596695,2.13146548,118720.0,118710.0,0.76609987]
[1753356596991,2.34228626,118720.0,118710.0,0.76609987]
[1753356597295,2.34228626,118720.0,118710.0,0.40529987]
[1753356597483,2.34228626,118720.0,118710.0,0.40783987]
[1753356597689,2.35997788,118720.0,118710.0,0.49963987]
[1753356598994,2.34228626,118720.0,118710.0,0.56986987]
[1753356599195,2.34228626,118720.0,118710.0,0.25517987]
[1753356599494,2.34228626,118720.0,118710.0,0.61597987]
[1753356599890,2.34228626,118720.0,118710.0,0.56986987]
[1753356600096,2.34228626,118720.0,118710.0,0.13883987]
[1753356600995,2.70308626,118720.0,118710.0,0.04703987]
[1753356601394,2.34228626,118720.0,118710.0,0.04703987]
[1753356601790,2.70308626,118720.0,118710.0,0.04703987]
[1753356601990,2.72074435,118720.0,118710.0,0.002]
[1753356602595,2.35994435,118720.0,118710.0,0.002]
[1753356602791,2.35994435,118720.0,118710.0,0.13883987]
[1753356603396,2.34228626,118720.0,118710.0,0.13883987]
[1753356603593,2.35994729,118720.0,118710.0,0.0938]
[1753356603794,2.35994729,118720.0,118710.0,0.13883987]
[1753356604094,2.35994729,118720.0,118710.0,0.0938]
[1753356605397,2.35994729,118720.0,118710.0,0.13883987]
[1753356606701,1.72748495,118720.0,118710.0,0.13883987]
[1753356606904,2.35994729,118720.0,118710.0,0.13883987]
[1753356608801,2.35994729,118720.0,118710.0,0.0938]
[1753356609204,2.35994729,118720.0,118710.0,0.13883987]
[1753356609500,2.35994729,118720.0,118710.0,0.0938]
[1753356610402,2.35994729,118720.0,118710.0,0.13883987]
[1753356610601,2.35994729,118720.0,118710.0,0.0938]
[1753356612500,2.72074729,118720.0,118710.0,0.002]
[1753356615007,0.4838251,118710.0,118700.0,0.04503987]
[1753356615212,2.08654847,118710.0,118700.0,0.13683987]
[1753356615504,2.00284477,118710.0,118700.0,0.13683987]
[1753356615705,2.00284477,118710.0,118700.0,0.0918]
[1753356616307,2.00284477,118710.0,118700.0,0.0938]
[1753356616603,2.57446555,118710.0,118700.0,0.002]
[1753356617004,2.57446555,118710.0,118700.0,0.004]
[1753356617198,2.21366555,118710.0,118700.0,0.004]
[1753356617400,2.00284477,118710.0,118700.0,0.004]
[1753356619406,2.36364477,118710.0,118700.0,0.004]
[1753356620012,2.00284477,118710.0,118700.0,0.004]
[1753356620205,2.00284477,118710.0,118700.0,0.3568]
[1753356620405,1.98506374,118710.0,118700.0,0.3568]
[1753356621010,1.39258374,118710.0,118700.0,0.3568]
[1753356621312,1.98506374,118710.0,118700.0,0.7176]
[1753356621512,1.98506374,118710.0,118700.0,0.3568]
[1753356623517,1.98506374,118710.0,118700.0,0.7176]
[1753356623911,2.00271428,118710.0,118700.0,0.3568]
[1753356624815,2.36351428,118710.0,118700.0,0.0958]
[1753356625020,2.36351428,118710.0,118700.0,0.004]
[1753356625222,2.22308306,118710.0,118700.0,0.004]
[1753356625616,1.63060306,118710.0,118700.0,0.004]
[1753356625817,1.86216306,118710.0,118700.0,0.0958]
[1753356629736,1.86216911,118710.0,118700.0,0.0958]
[1753356634836,2.22296911,118710.0,118700.0,0.004]
[1753356635037,0.1683993,118700.0,118690.0,0.40583987]
[1753356635242,1.10996964,118700.0,118690.0,0.40583987]
[1753356635442,1.23661646,118700.0,118690.0,0.40583987]
[1753356635642,1.23661646,118700.0,118690.0,0.04503987]
[1753356636851,0.3068235,118690.0,118680.0,0.40586136]
[1753356637150,0.3808677,118680.0,118670.0,0.45375]
[1753356637336,1.28328838,118680.0,118670.0,0.57156]
[1753356637644,1.28328838,118680.0,118670.0,0.67904]
[1753356638852,1.29151513,118680.0,118670.0,0.68104]
[1753356639844,0.72909445,118680.0,118670.0,0.68104]
[1753356640143,1.01030479,118680.0,118670.0,0.71354]
[1753356640450,0.99746804,118680.0,118670.0,0.71354]
[1753356640641,1.06478093,118680.0,118670.0,0.71354]
[1753356641043,1.06478093,118680.0,118670.0,0.71654]
[1753356641745,1.06939093,118680.0,118670.0,0.71654]
[1753356642349,1.35060127,118680.0,118670.0,0.71654]
[1753356645154,1.35060127,118680.0,118670.0,0.35574]
[1753356645654,1.35060127,118680.0,118670.0,0.09795]
[1753356646965,1.94256127,118680.0,118670.0,0.09495]
[1753356647456,1.94256127,118680.0,118670.0,0.09695]
[1753356647655,1.94252127,118680.0,118670.0,0.09695]
[1753356650756,2.30332127,118680.0,118670.0,0.09695]
[1753356651052,1.94252127,118680.0,118670.0,0.09695]
[1753356652248,2.06913374,118680.0,118670.0,0.09695]
[1753356653663,1.47721374,118680.0,118670.0,0.09695]
[1753356653856,0.91479306,118680.0,118670.0,0.09695]
[1753356654162,2.06897374,118680.0,118670.0,0.35474]
[1753356654960,1.50194306,118680.0,118670.0,0.8839819]
[1753356655164,1.7091234,118680.0,118670.0,0.71554]
[1753356655459,1.7091234,118680.0,118670.0,0.8839819]
[1753356658364,1.1173634,118680.0,118670.0,0.8839819]
[1753356658662,1.7090834,118680.0,118670.0,0.92897971]
[1753356659059,1.7090834,118680.0,118670.0,0.93722361]
[1753356659362,1.2352834,118680.0,118670.0,0.93722361]
[1753356659663,1.41867093,118680.0,118670.0,0.93722361]
[1753356659864,1.13867093,118680.0,118670.0,0.93722361]
[1753356660756,1.10867093,118680.0,118670.0,0.93722361]
[1753356660955,1.46867093,118680.0,118670.0,0.93722361]
[1753356661658,0.1684277,118680.0,118670.0,1.06075379]
[1753356661860,0.2947442,118690.0,118680.0,0.5273877]
[1753356662058,1.2164242,118690.0,118680.0,0.9332002]
[1753356662256,1.62468533,118690.0,118680.0,0.9332002]
[1753356662756,1.69119053,118690.0,118680.0,0.9332002]
[1753356662954,1.09951053,118690.0,118680.0,0.9332002]
[1753356663153,1.69119053,118690.0,118680.0,0.9342002]
[1753356663357,1.40998019,118690.0,118680.0,0.9342002]
[1753356663564,1.69119053,118690.0,118680.0,0.9342002]
[1753356663968,1.40998019,118690.0,118680.0,0.9342002]
[1753356664262,1.69119053,118690.0,118680.0,0.9342002]
[1753356664966,1.69119053,118690.0,118680.0,0.8891877]
[1753356666467,1.09951053,118690.0,118680.0,0.8891877]
[1753356666667,1.69111053,118690.0,118680.0,0.8891877]
[1753356666965,1.69111053,118690.0,118680.0,0.8901877]
[1753356667555,1.69111053,118690.0,118680.0,0.93520254]
[1753356667761,1.73824053,118690.0,118680.0,0.93520254]
[1753356667969,1.73824053,118690.0,118680.0,0.8901877]
[1753356668165,1.73824053,118690.0,118680.0,0.93520274]
[1753356668963,1.73824053,118690.0,118680.0,0.8901877]
[1753356669463,1.73820053,118690.0,118680.0,0.8901877]
[1753356671169,1.69609413,118690.0,118680.0,0.8901877]
[1753356671760,1.56904334,118690.0,118680.0,0.8901877]
[1753356673271,1.37118384,118690.0,118680.0,0.8901877]
[1753356673464,0.8099735,118690.0,118680.0,0.8901877]
[1753356673664,1.0799735,118690.0,118680.0,0.8901877]
[1753356673865,1.0799735,118690.0,118680.0,0.93517034]
[1753356674065,1.36118384,118690.0,118680.0,0.93517034]
[1753356674472,1.48715384,118690.0,118680.0,0.93517034]
[1753356677166,1.55496384,118690.0,118680.0,0.93517034]
[1753356677566,1.48715384,118690.0,118680.0,0.93517034]
[1753356679171,0.05085,118690.0,118680.0,0.93517034]
[1753356679371,0.8106635,118690.0,118680.0,0.93517034]
[1753356679678,0.73745,118690.0,118680.0,0.93517034]
[1753356680071,0.69032,118690.0,118680.0,0.93517034]
[1753356680879,1.05745,118690.0,118680.0,0.93517034]
[1753356681278,1.2258635,118690.0,118680.0,0.93517034]
[1753356681578,1.2258635,118690.0,118680.0,0.8901877]
[1753356682182,1.05745,118690.0,118680.0,0.8901877]
[1753356682980,1.1306635,118690.0,118680.0,0.8901877]
[1753356683379,1.1777935,118690.0,118680.0,0.8901877]
[1753356684079,1.1777935,118690.0,118680.0,0.95017862]
[1753356684580,1.45900384,118690.0,118680.0,0.95017862]
[1753356686178,1.45900384,118690.0,118680.0,0.8901877]
[1753356688380,1.45900384,118690.0,118680.0,0.96517635]
[1753356688581,1.16900384,118690.0,118680.0,0.8901877]
[1753356688782,1.45900384,118690.0,118680.0,0.8901877]
[1753356689083,1.11900384,118690.0,118680.0,0.8901877]
[1753356689284,1.14519498,118690.0,118680.0,1.10105918]
[1753356689584,1.45519498,118690.0,118680.0,1.10105918]
[1753356690786,1.45519498,118690.0,118680.0,0.8901877]
[1753356690980,1.45519498,118690.0,118680.0,1.10105918]
[1753356693587,1.13519498,118690.0,118680.0,1.10105918]
[1753356693790,1.42519498,118690.0,118680.0,1.10105918]
[1753356694686,1.49585498,118690.0,118680.0,1.10105918]
[1753356695484,1.21585498,118690.0,118680.0,1.10105918]
[1753356695789,1.51585498,118690.0,118680.0,1.10105918]
[1753356698090,1.51585498,118690.0,118680.0,0.8901877]
[1753356698282,1.51585498,118690.0,118680.0,1.10105918]
[1753356698686,1.3049835,118690.0,118680.0,1.10105918]
[1753356698886,1.3049835,118690.0,118680.0,1.17604783]
[1753356699086,1.51585498,118690.0,118680.0,1.17604783]
[1753356700092,1.3049835,118690.0,118680.0,1.17604783]
[1753356700291,1.51585498,118690.0,118680.0,1.17604783]
[1753356700492,1.44519498,118690.0,118680.0,1.17604783]
[1753356701997,1.44519498,118690.0,118680.0,1.10105918]
[1753356705600,0.8843235,118690.0,118680.0,1.10105918]
[1753356705898,0.97678148,118690.0,118680.0,1.10105918]
[1753356706593,1.14519498,118690.0,118680.0,1.10105918]
[1753356706898,0.55379498,118690.0,118680.0,1.10105918]
[1753356707099,1.14471498,118690.0,118680.0,1.10105918]
[1753356708897,1.09471498,118690.0,118680.0,0.96517635]
[1753356709102,1.14471498,118690.0,118680.0,1.17604783]
[1753356709400,0.97630148,118690.0,118680.0,1.17604783]
[1753356709601,1.40471498,118690.0,118680.0,1.17604783]
[1753356710097,1.40471498,118690.0,118680.0,1.10105918]
[1753356712700,1.40471498,118690.0,118680.0,1.17604783]
[1753356714504,1.40471498,118690.0,118680.0,0.96517635]
[1753356714703,1.47537498,118690.0,118680.0,1.17604783]
[1753356715503,1.47537498,118690.0,118680.0,0.96517635]
[1753356715704,1.47537498,118690.0,118680.0,1.17604783]
[1753356716499,1.47537498,118690.0,118680.0,0.96517635]
[1753356716793,0.88445498,118690.0,118680.0,1.17604783]
[1753356716999,1.47513498,118690.0,118680.0,1.10105918]
[1753356717505,1.47513498,118690.0,118680.0,0.8901877]
[1753356717805,1.47513498,118690.0,118680.0,1.10105918]
[1753356718104,1.30672148,118690.0,118680.0,1.10105918]
[1753356718305,1.18893148,118690.0,118680.0,1.10105918]
[1753356719095,1.23613148,118690.0,118680.0,1.10105918]
[1753356719301,0.03184,118700.0,118690.0,0.5166335]
[1753356719500,0.3320867,118710.0,118690.0,0.5166335]
[1753356719501,0.50364148,118710.0,118700.0,0.5166193]
[1753356719799,1.59139452,118710.0,118700.0,1.08829078]
[1753356720505,1.38052304,118710.0,118700.0,1.08829078]
[1753356720712,1.59139452,118710.0,118700.0,1.08829078]
[1753356720899,1.59339452,118710.0,118700.0,1.08829078]
[1753356721100,1.59339452,118710.0,118700.0,1.16327943]
[1753356721304,1.59439452,118710.0,118700.0,1.16327943]
[1753356721706,1.59439452,118710.0,118700.0,1.08829078]
[1753356723807,0.03484,118710.0,118700.0,1.35926165]
[1753356724005,0.3769248,118730.0,118720.0,0.5165909]
[1753356724314,0.3769248,118730.0,118720.0,1.28325825]
[1753356724315,1.6975752,118730.0,118720.0,1.28325825]
[1753356724505,2.7875752,118730.0,118720.0,1.28325825]
[1753356724907,2.1970552,118730.0,118720.0,1.28325825]
[1753356725102,2.85529622,118730.0,118720.0,1.28325825]
[1753356725815,2.64442474,118730.0,118720.0,1.28325825]
[1753356726014,2.85529622,118730.0,118720.0,1.28325825]
[1753356726319,2.85629622,118730.0,118720.0,1.28325825]
[1753356728014,2.64542474,118730.0,118720.0,1.28325825]
[1753356728212,2.85629622,118730.0,118720.0,1.28325825]
[1753356730717,2.64542474,118730.0,118720.0,1.28325825]
[1753356730917,2.85629622,118730.0,118720.0,1.28325825]
[1753356736629,1.76629622,118730.0,118720.0,1.28325825]
[1753356738029,1.9771677,118730.0,118720.0,1.28325825]
[1753356738232,1.9771677,118730.0,118720.0,0.85346735]
[1753356738434,1.9771677,118730.0,118720.0,1.02183825]
[1753356738829,1.9771677,118730.0,118720.0,0.85346735]
[1753356739136,1.9771677,118730.0,118720.0,1.02183825]
[1753356740335,1.9771677,118730.0,118720.0,1.09544825]
[1753356740537,1.9771677,118730.0,118720.0,1.14139825]
[1753356745435,1.9771677,118730.0,118720.0,0.85346735]
[1753356745629,2.18803918,118730.0,118720.0,0.40586735]
[1753356745834,0.3671509,118720.0,118710.0,0.3608]
[1753356746032,1.34976534,118720.0,118710.0,0.3608]
[1753356746341,1.4761178,118720.0,118710.0,0.3108]
[1753356746541,0.2459751,118710.0,118700.0,0.49264924]
[1753356746748,0.2459751,118710.0,118700.0,0.70642854]
[1753356746749,1.67898806,118710.0,118700.0,0.70642854]
[1753356746933,1.80534052,118710.0,118700.0,0.70642854]
[1753356747134,1.66475042,118710.0,118700.0,0.53802924]
[1753356747335,1.66475042,118710.0,118700.0,0.49298]
[1753356747842,1.66475042,118710.0,118700.0,0.3608]
[1753356748243,0.3372993,118700.0,118690.0,0.53756924]
[1753356748441,0.94845216,118700.0,118690.0,0.53756924]
[1753356748638,1.0751852,118700.0,118690.0,0.53756924]
[1753356749441,1.0751852,118700.0,118690.0,0.77493274]
[1753356750045,1.0751852,118700.0,118690.0,0.91434274]
[1753356757043,1.6650652,118700.0,118690.0,0.91434274]
[1753356757947,0.79403234,118700.0,118690.0,0.91434274]
[1753356758136,1.0517652,118700.0,118690.0,0.91434274]
[1753356758342,1.6416052,118700.0,118690.0,0.91434274]
[1753356760741,1.0517652,118700.0,118690.0,0.91434274]
[1753356760948,1.6416052,118700.0,118690.0,0.91434274]
[1753356761852,1.5737152,118700.0,118690.0,0.91434274]
[1753356762448,1.12416304,118700.0,118690.0,0.91434274]
[1753356762657,1.29256234,118700.0,118690.0,0.91434274]
[1753356762845,1.5737152,118700.0,118690.0,0.91434274]
[1753356763754,1.5737152,118700.0,118690.0,0.8692935]
[1753356763956,1.5737152,118700.0,118690.0,0.91432678]
[1753356764754,1.6416052,118700.0,118690.0,0.91432678]
[1753356766757,1.36045234,118700.0,118690.0,0.91432678]
[1753356766954,1.6416052,118700.0,118690.0,0.91432678]
[1753356767662,1.5737152,118700.0,118690.0,0.91432678]
[1753356769755,1.5835952,118700.0,118690.0,0.91432678]
[1753356769962,1.0138752,118700.0,118690.0,0.91432678]
[1753356770158,1.33244234,118700.0,118690.0,0.91432678]
[1753356770359,1.33244234,118700.0,118690.0,0.8692935]
[1753356770554,0.66731,118700.0,118690.0,0.8692935]
[1753356770759,0.66731,118700.0,118690.0,1.15044636]
[1753356770957,0.8357093,118700.0,118690.0,1.15044636]
[1753356771158,0.66731,118700.0,118690.0,1.15044636]
[1753356771560,1.1457093,118700.0,118690.0,1.15044636]
[1753356772066,0.8357093,118700.0,118690.0,1.15044636]
[1753356772267,1.1957093,118700.0,118690.0,0.8692935]
[1753356773166,0.66731,118700.0,118690.0,0.8692935]
[1753356773675,0.99731,118700.0,118690.0,0.8692935]
[1753356774060,0.66731,118700.0,118690.0,0.8692935]
[1753356774255,1.03731,118700.0,118690.0,0.92939289]
[1753356775576,1.03731,118700.0,118690.0,0.93039289]
[1753356775769,1.2057093,118700.0,118690.0,0.93039289]
[1753356775971,1.2057093,118700.0,118690.0,0.93139289]
[1753356776176,1.1439293,118700.0,118690.0,0.93139289]
[1753356776475,1.1439293,118700.0,118690.0,1.21254575]
[1753356776674,1.42508216,118700.0,118690.0,0.93139289]
[1753356777375,1.1439293,118700.0,118690.0,0.93139289]
[1753356779280,1.49469216,118700.0,118690.0,0.93139289]
[1753356780382,1.49469216,118700.0,118690.0,0.93039289]
[1753356780679,1.49469216,118700.0,118690.0,0.92939289]
[1753356781280,1.2135393,118700.0,118690.0,0.92939289]
[1753356781479,1.49469216,118700.0,118690.0,0.92939289]
[1753356781876,1.2135393,118700.0,118690.0,0.92939289]
[1753356782082,1.49469216,118700.0,118690.0,0.92939289]
[1753356782784,1.49469216,118700.0,118690.0,0.8692935]
[1753356783582,1.51811216,118700.0,118690.0,0.8692935]
[1753356783979,1.51811216,118700.0,118690.0,0.65091]
[1753356784282,1.51811216,118700.0,118690.0,0.49252]
[1753356784484,1.51811216,118700.0,118690.0,0.6609335]
[1753356784682,1.51811216,118700.0,118690.0,0.49252]
[1753356785182,1.65873692,118700.0,118690.0,0.49252]
[1753356786185,1.86962573,118700.0,118690.0,0.42102229]
[1753356786385,1.99602277,118700.0,118690.0,0.42102229]
[1753356786588,2.35682277,118700.0,118690.0,0.06022229]
[1753356786787,0.2876035,118690.0,118680.0,0.57343097]
[1753356786979,1.05938112,118690.0,118680.0,0.57343097]
[1753356787182,0.91884776,118690.0,118680.0,0.57343097]